[Event "FIDE World Cup O12-A 2024"]
[Site "Batumi"]
[Date "2024.06.27"]
[Round "5.7"]
[White "Haresh, Venkata Narayanaswam"]
[Black "Yerzhanuly Yernur"]
[Result "1-0"]
[ECO "C19"]
[WhiteElo "1728"]
[BlackElo "1810"]
[Annotator "NA RC"]
[PlyCount "161"]
[EventDate "2024.06.23"]
[EventType "swiss"]
[EventCountry "GEO"]
[SourceTitle "playchess.com"]
[Source "ChessBase"]
[SourceQuality "1"]
[TimeControl "5400+30"]

1. e4 {[%emt 0:00:04]} e6 {[%emt 0:00:18]} 2. d4 {[%emt 0:00:10]} d5 {[%emt 0:00:04]} 3. Nc3 {[%emt 0:00:08]} Bb4 {[%emt 0:00:08]} 4. e5 {[%emt 0:00:04]} c5 {[%emt 0:00:09]} 5. a3 {[%emt 0:00:07]} Bxc3+ {[%emt 0:00:07]} 6. bxc3 {[%emt 0:00:10]} Ne7 {[%emt 0:00:05]} 7. Nf3 {[%emt 0:00:08]} b6 {[%emt 0:00:48]} 8. Bb5+ {[%emt 0:00:11]} Bd7 {[%emt 0:00:49]} 9. Bd3 {[%emt 0:00:02]} Ba4 {[%emt 0:00:19]} 10. h4 {[%emt 0:00:11]} c4 {[%emt 0:02:27]} 11. Be2 {[%emt 0:00:01]} h6 {[%emt 0:00:13]} 12. h5 {[%emt 0:00:12]} Kd7 {[%emt 0:02:05]} 13. Be3 {[%emt 0:00:01]} Qg8 {[%emt 0:01:09]} 14. g4 {[%emt 0:00:21]} Qh7 {[%emt 0:00:50]} 15. Kd2 {[%emt 0:00:03]} Na6 {[%emt 0:12:53]} 16. Nh4 {[%emt 0:01:42]} Rhf8 {[%emt 0:02:51]} 17. f4 {[%emt 0:05:17]} f5 {[%emt 0:02:48]} 18. gxf5 {[%emt 0:08:00]} Nxf5 {[%emt 0:03:50]} 19. Nxf5 {[%emt 0:02:08]} Rxf5 {[%emt 0:00:25]} 20. Rg1 {[%emt 0:02:30]} Raf8 {[%emt 0:23:41]} 21. Rg6 {[%emt 0:02:00]} Ke7 {[%emt 0:08:40]} 22. Bg4 {[%emt 0:01:52]} Be8 {[%emt 0:04:07]} 23. Bxf5 {[%emt 0:04:31]} Rxf5 {[%emt 0:00:02]} 24. Rg2 {[%emt 0:03:37]} Bxh5 {[%emt 0:00:24]} 25. Qg1 {[%emt 0:00:40]} Rf7 {[%emt 0:00:54]} 26. Rg3 {[%emt 0:08:58]} Nc7 {[%emt 0:03:34]} 27. a4 {[%emt 0:02:27]} Kf8 {[%emt 0:07:09]} 28. a5 {[%emt 0:09:20]} b5 {[%emt 0:01:02]} 29. a6 {[%emt 0:00:38]} Qe4 {[%emt 0:00:33]} 30. Kc1 {[%emt 0:23:29]} g5 {[%emt 0:10:43]} 31. fxg5 {[%emt 0:02:38]} Bg6 {[%emt 0:00:34]} 32. Qg2 {[%emt 0:09:04]} h5 {[%emt 0:00:51]} 33. Qd2 {[%emt 0:10:03]} Rf1+ {[%emt 0:02:44]} 34. Kb2 {[%emt 0:00:07]} Rxa1 {[%emt 0:00:05]} 35. Kxa1 {[%emt 0:00:02]} Nxa6 {[%emt 0:00:16]} 36. Kb2 {[%emt 0:02:01]} h4 {[%emt 0:00:18]} 37. Qf2+ {[%emt 0:00:26]} Kg7 {[%emt 0:03:21]} 38. Rh3 {[%emt 0:00:27]} Qf5 {[%emt 0:00:19]} 39. Rf3 {[%emt 0:01:42]} Qg4 {[%emt 0:01:12]} 40. Rf6 {[%emt 0:01:35]} Bf5 {[%emt 0:00:53]} 41. Rh6 {[%emt 0:02:30]} h3 {[%emt 0:01:00]} 42. g6 {[%emt 0:00:17]} Qg2 {[%emt 0:01:02]} 43. Qxg2 {[%emt 0:01:28]} hxg2 {[%emt 0:00:07]} 44. Rh7+ {[%emt 0:00:32]} Kxg6 {[%emt 0:00:11]} 45. Rxa7 {[%emt 0:00:32]} Nb8 {[%emt 0:00:06]} 46. Ra8 {[%emt 0:00:13]} Nc6 {[%emt 0:01:55]} 47. Rg8+ {[%emt 0:00:09]} Kf7 {[%emt 0:00:10]} 48. Rxg2 {[%emt 0:00:08]} b4 {[%emt 0:00:17]} 49. Bd2 {[%emt 0:01:12]} bxc3+ {[%emt 0:00:25]} 50. Bxc3 {[%emt 0:00:44]} Ne7 {[%emt 0:00:39]} 51. Ka3 {[%emt 0:00:36]} Ng6 {[%emt 0:00:17]} 52. Kb4 {[%emt 0:00:18]} Nf4 {[%emt 0:00:23]} 53. Rf2 {[%emt 0:00:07]} Nh3 {[%emt 0:00:06]} 54. Rh2 {[%emt 0:00:42]} Ng5 {[%emt 0:00:21]} 55. Bb2 {[%emt 0:00:21]} Nf3 {[%emt 0:00:14]} 56. Rf2 {[%emt 0:00:42]} Ng5 {[%emt 0:00:11]} 57. c3 {[%emt 0:00:22]} Ne4 {[%emt 0:00:10]} 58. Rf4 {[%emt 0:00:50]} Kg6 {[%emt 0:00:17]} 59. Kb5 {[%emt 0:00:33]} Kg5 {[%emt 0:00:47]} 60. Rf1 {[%emt 0:00:18]} Ng3 {[%emt 0:00:20]} 61. Ra1 {[%emt 0:00:35]} Kf4 {[%emt 0:00:58]} 62. Ra6 {[%emt 0:00:29]} Ke3 {[%emt 0:00:36]} 63. Kc6 {[%emt 0:00:24]} Kd2 {[%emt 0:00:31]} 64. Kd7 {[%emt 0:00:21]} Ne4 {[%emt 0:02:26]} 65. Ke7 {[%emt 0:00:38]} Nxc3 {[%emt 0:00:31]} 66. Rxe6 {[%emt 0:00:19]} Ne4 {[%emt 0:03:37]} 67. Rf6 {[%emt 0:00:56]} Nxf6 {[%emt 0:01:56]} 68. Kxf6 {[%emt 0:00:26]} Bg4 {[%emt 0:00:13]} 69. e6 {[%emt 0:00:34]} c3 {[%emt 0:00:09]} 70. Ba3 {[%emt 0:00:29]} c2 {[%emt 0:00:15]} 71. e7 {[%emt 0:00:12]} Bd7 {[%emt 0:00:56]} 72. Ke5 {[%emt 0:00:15]} Kc3 {[%emt 0:01:10]} 73. Kxd5 {[%emt 0:00:14]} Be8 {[%emt 0:00:26]} 74. Kc5 {[%emt 0:00:21]} Kd3 {[%emt 0:00:28]} 75. d5 {[%emt 0:00:32]} Ke4 {[%emt 0:00:05]} 76. Kd6 {[%emt 0:01:09]} Bf7 {[%emt 0:00:48]} 77. Bb2 {[%emt 0:00:10]} Kf5 {[%emt 0:00:44]} 78. Kd7 {[%emt 0:00:39]} c1=Q {[%emt 0:00:17]} 79. Bxc1 {[%emt 0:00:02]} Ke5 {[%emt 0:00:02]} 80. d6 {[%emt 0:00:14]} Kd5 {[%emt 0:00:19]} 81. Bf4 {[%emt 0:00:17]} 1-0

[Event "FIDE World Cup O12-A 2024"]
[Site "Batumi"]
[Date "2024.06.27"]
[Round "5.8"]
[White "Nanayakkara, Sanuk"]
[Black "Kozhedub, Ivan"]
[Result "1/2-1/2"]
[ECO "A88"]
[WhiteElo "1714"]
[BlackElo "1778"]
[Annotator "NA RC"]
[PlyCount "51"]
[EventDate "2024.06.23"]
[EventType "swiss"]
[EventCountry "GEO"]
[SourceTitle "playchess.com"]
[Source "ChessBase"]
[SourceQuality "1"]
[TimeControl "5400+30"]

1. Nf3 {[%emt 0:00:03]} f5 {[%emt 0:00:04]} 2. g3 {[%emt 0:00:09]} Nf6 {[%emt 0:00:05]} 3. Bg2 {[%emt 0:00:06]} g6 {[%emt 0:00:09]} 4. O-O {[%emt 0:00:43]} Bg7 {[%emt 0:00:07]} 5. d4 {[%emt 0:01:01]} O-O {[%emt 0:00:12]} 6. c4 {[%emt 0:00:15]} d6 {[%emt 0:00:08]} 7. Nc3 {[%emt 0:06:37]} c6 {[%emt 0:01:36]} 8. Qc2 {[%emt 0:06:31]} Qe8 {[%emt 0:02:20]} 9. Re1 {[%emt 0:03:49]} Nbd7 {[%emt 0:12:53]} 10. e4 {[%emt 0:08:46]} fxe4 {[%emt 0:01:09]} 11. Nxe4 {[%emt 0:00:07]} Nxe4 {[%emt 0:00:05]} 12. Qxe4 {[%emt 0:00:10]} e5 {[%emt 0:00:45]} 13. dxe5 {[%emt 0:05:11]} Nxe5 {[%emt 0:00:16]} 14. Nxe5 {[%emt 0:01:38]} dxe5 {[%emt 0:02:04]} 15. Bd2 {[%emt 0:12:03]} Qf7 {[%emt 0:01:27]} 16. Qe2 {[%emt 0:07:23]} Bg4 {[%emt 0:06:52]} 17. Qf1 {[%emt 0:00:21]} Rad8 {[%emt 0:01:44]} 18. Bc3 {[%emt 0:03:52]} Bf5 {[%emt 0:00:51]} 19. Re3 {[%emt 0:10:33]} Bh6 {[%emt 0:16:42]} 20. Rxe5 {[%emt 0:02:06]} Bd3 {[%emt 0:00:11]} 21. Qe1 {[%emt 0:00:26]} Bxc4 {[%emt 0:05:55]} 22. Re7 {[%emt 0:01:37]} Qf5 {[%emt 0:00:32]} 23. Bh3 {[%emt 0:01:54]} Qf3 {[%emt 0:12:42]} 24. Bg2 {[%emt 0:07:45]} Qf5 {[%emt 0:02:07]} 25. Bh3 {[%emt 0:12:54]} Qf3 {[%emt 0:03:44]} 26. Bg2 {[%emt 0:07:30]} 1/2-1/2

[Event "FIDE World Cup O12-A 2024"]
[Site "Batumi"]
[Date "2024.06.27"]
[Round "5.10"]
[White "Lee, Daniel Joshua"]
[Black "Diasamidze, Rati"]
[Result "0-1"]
[ECO "B90"]
[WhiteElo "1717"]
[BlackElo "1646"]
[Annotator "NA RC"]
[PlyCount "82"]
[EventDate "2024.06.23"]
[EventType "swiss"]
[EventCountry "GEO"]
[SourceTitle "playchess.com"]
[Source "ChessBase"]
[SourceQuality "1"]
[TimeControl "5400+30"]

1. e4 {[%emt 0:00:02]} c5 {[%emt 0:00:04]} 2. Nf3 {[%emt 0:00:05]} d6 {[%emt 0:00:06]} 3. d4 {[%emt 0:00:04]} cxd4 {[%emt 0:00:05]} 4. Nxd4 {[%emt 0:00:04]} Nf6 {[%emt 0:00:10]} 5. Nc3 {[%emt 0:00:06]} a6 {[%emt 0:00:08]} 6. f3 {[%emt 0:00:08]} e5 {[%emt 0:00:16]} 7. Nb3 {[%emt 0:00:05]} Be6 {[%emt 0:02:59]} 8. Be3 {[%emt 0:00:05]} Be7 {[%emt 0:01:25]} 9. Qd2 {[%emt 0:00:06]} h5 {[%emt 0:01:31]} 10. O-O-O {[%emt 0:00:08]} b5 {[%emt 0:02:32]} 11. Nd5 {[%emt 0:01:33]} Bxd5 {[%emt 0:11:09]} 12. exd5 {[%emt 0:00:12]} Qc7 {[%emt 0:02:30]} 13. Kb1 {[%emt 0:04:24]} Nbd7 {[%emt 0:02:43]} 14. Na5 {[%emt 0:02:34]} Nb6 {[%emt 0:04:19]} 15. Bxb6 {[%emt 0:01:13]} Qxb6 {[%emt 0:00:06]} 16. Nc6 {[%emt 0:06:38]} Bd8 {[%emt 0:22:47]} 17. Nxd8 {[%emt 0:03:46]} Rxd8 {[%emt 0:01:26]} 18. Qg5 {[%emt 0:04:14]} Kf8 {[%emt 0:08:36]} 19. Bd3 {[%emt 0:11:07]} Nxd5 {[%emt 0:11:09]} 20. Bxb5 {[%emt 0:12:57]} Nc3+ {[%emt 0:01:31]} 21. bxc3 {[%emt 0:00:28]} Qxb5+ {[%emt 0:00:10]} 22. Ka1 {[%emt 0:01:27]} Qa5 {[%emt 0:01:17]} 23. Qe3 {[%emt 0:04:19]} g6 {[%emt 0:03:11]} 24. Rb1 {[%emt 0:05:59]} Kg7 {[%emt 0:03:13]} 25. Rb7 {[%emt 0:04:17]} Rc8 {[%emt 0:03:41]} 26. Rhb1 {[%emt 0:04:12]} Rxc3 {[%emt 0:04:02]} 27. Qd2 {[%emt 0:07:50]} Qc5 {[%emt 0:01:53]} 28. Qg5 {[%emt 0:03:50]} Qd4 {[%emt 0:02:18]} 29. R1b2 {[%emt 0:09:40]} Rxc2 {[%emt 0:01:43]} 30. R7b4 {[%emt 0:01:54]} Qd1+ {[%emt 0:01:35]} 31. Rb1 {[%emt 0:00:17]} Qe2 {[%emt 0:00:59]} 32. R1b2 {[%emt 0:04:12]} Rxb2 {[%emt 0:01:40]} 33. Rxb2 {[%emt 0:00:23]} Qe1+ {[%emt 0:00:14]} 34. Rb1 {[%emt 0:00:09]} Qc3+ {[%emt 0:00:04]} 35. Rb2 {[%emt 0:00:04]} Rb8 {[%emt 0:00:48]} 36. Qd2 {[%emt 0:00:16]} Qxb2+ {[%emt 0:00:05]} 37. Qxb2 {[%emt 0:00:06]} Rxb2 {[%emt 0:00:05]} 38. Kxb2 {[%emt 0:00:04]} f5 {[%emt 0:00:11]} 39. Kc3 {[%emt 0:00:12]} e4 {[%emt 0:00:15]} 40. fxe4 {[%emt 0:01:24]} fxe4 {[%emt 0:00:05]} 41. Kd4 {[%emt 0:00:04]} d5 {[%emt 0:00:06]} 0-1

[Event "FIDE World Cup O12-A 2024"]
[Site "Batumi"]
[Date "2024.06.27"]
[Round "5.11"]
[White "Berdashkevich, Makar"]
[Black "Todua, Andria"]
[Result "1-0"]
[ECO "B33"]
[WhiteElo "1650"]
[BlackElo "1599"]
[Annotator "NA RC"]
[PlyCount "121"]
[EventDate "2024.06.23"]
[EventType "swiss"]
[EventCountry "GEO"]
[SourceTitle "playchess.com"]
[Source "ChessBase"]
[SourceQuality "1"]
[TimeControl "5400+30"]

1. e4 {[%emt 0:00:03]} c5 {[%emt 0:00:02]} 2. Nf3 {[%emt 0:00:12]} e6 {[%emt 0:00:03]} 3. d4 {[%emt 0:00:15]} cxd4 {[%emt 0:00:03]} 4. Nxd4 {[%emt 0:00:14]} Nf6 {[%emt 0:00:07]} 5. Nc3 {[%emt 0:00:20]} Nc6 {[%emt 0:00:07]} 6. Ndb5 {[%emt 0:00:46]} d6 {[%emt 0:00:07]} 7. Bf4 {[%emt 0:01:33]} e5 {[%emt 0:00:10]} 8. Bg5 {[%emt 0:00:13]} a6 {[%emt 0:00:08]} 9. Na3 {[%emt 0:01:52]} b5 {[%emt 0:00:11]} 10. Nd5 {[%emt 0:00:43]} Be7 {[%emt 0:00:12]} 11. Bxf6 {[%emt 0:00:15]} Bxf6 {[%emt 0:00:08]} 12. c3 {[%emt 0:00:12]} O-O {[%emt 0:00:18]} 13. Nc2 {[%emt 0:02:49]} Rb8 {[%emt 0:02:10]} 14. h4 {[%emt 0:18:06]} g6 {[%emt 0:01:03]} 15. g3 {[%emt 0:05:18]} Bg7 {[%emt 0:00:42]} 16. h5 {[%emt 0:00:40]} Be6 {[%emt 0:04:34]} 17. Nce3 {[%emt 0:04:39]} Ne7 {[%emt 0:01:04]} 18. Bh3 {[%emt 0:12:46]} Qd7 {[%emt 0:08:12]} 19. hxg6 {[%emt 0:05:39]} fxg6 {[%emt 0:02:48]} 20. Nxe7+ {[%emt 0:00:39]} Qxe7 {[%emt 0:00:06]} 21. Bxe6+ {[%emt 0:00:10]} Qxe6 {[%emt 0:00:03]} 22. Qd5 {[%emt 0:00:13]} Qf7 {[%emt 0:00:11]} 23. a3 {[%emt 0:02:19]} Kh8 {[%emt 0:01:17]} 24. Qxf7 {[%emt 0:00:58]} Rxf7 {[%emt 0:00:05]} 25. Rd1 {[%emt 0:00:53]} Bf8 {[%emt 0:00:19]} 26. Nd5 {[%emt 0:00:55]} a5 {[%emt 0:00:50]} 27. Ke2 {[%emt 0:02:00]} Ra7 {[%emt 0:01:50]} 28. Rd3 {[%emt 0:02:12]} Rc8 {[%emt 0:00:17]} 29. Rd2 {[%emt 0:03:45]} Ra6 {[%emt 0:07:30]} 30. Kd3 {[%emt 0:01:44]} h5 {[%emt 0:01:48]} 31. f4 {[%emt 0:08:42]} Kg7 {[%emt 0:11:48]} 32. Rdh2 {[%emt 0:02:31]} Kf7 {[%emt 0:02:27]} 33. f5 {[%emt 0:02:19]} gxf5 {[%emt 0:00:07]} 34. Rf1 {[%emt 0:00:42]} Ra7 {[%emt 0:02:57]} 35. Rxf5+ {[%emt 0:01:27]} Kg8 {[%emt 0:00:06]} 36. Rhxh5 {[%emt 0:00:26]} Rg7 {[%emt 0:00:15]} 37. Rhg5 {[%emt 0:02:22]} Rxg5 {[%emt 0:00:18]} 38. Rxg5+ {[%emt 0:00:06]} Kf7 {[%emt 0:00:04]} 39. Rf5+ {[%emt 0:00:08]} Kg7 {[%emt 0:00:57]} 40. g4 {[%emt 0:00:40]} Rc5 {[%emt 0:03:08]} 41. Ke3 {[%emt 0:03:28]} Rc6 {[%emt 0:02:27]} 42. Rf1 {[%emt 0:01:16]} Rc5 {[%emt 0:00:43]} 43. Ra1 {[%emt 0:04:21]} a4 {[%emt 0:00:14]} 44. Rf1 {[%emt 0:00:41]} Rc6 {[%emt 0:01:26]} 45. Kd3 {[%emt 0:00:30]} Rc5 {[%emt 0:00:27]} 46. Ne3 {[%emt 0:00:38]} Rc7 {[%emt 0:00:57]} 47. Ke2 {[%emt 0:00:18]} Rc8 {[%emt 0:01:44]} 48. Rd1 {[%emt 0:00:19]} Kf6 {[%emt 0:00:37]} 49. Rd5 {[%emt 0:01:18]} b4 {[%emt 0:00:32]} 50. axb4 {[%emt 0:02:53]} a3 {[%emt 0:00:05]} 51. bxa3 {[%emt 0:00:08]} Rxc3 {[%emt 0:00:03]} 52. Rd3 {[%emt 0:00:11]} Rc1 {[%emt 0:00:18]} 53. a4 {[%emt 0:00:49]} Rb1 {[%emt 0:00:03]} 54. b5 {[%emt 0:01:42]} Kg5 {[%emt 0:00:45]} 55. Kf3 {[%emt 0:00:09]} Be7 {[%emt 0:00:33]} 56. Rd5 {[%emt 0:01:45]} Ra1 {[%emt 0:01:17]} 57. b6 {[%emt 0:00:32]} Rxa4 {[%emt 0:00:01]} 58. Rb5 {[%emt 0:00:06]} Ra8 {[%emt 0:00:37]} 59. b7 {[%emt 0:00:07]} Rb8 {[%emt 0:00:03]} 60. Nd5 {[%emt 0:00:08]} Bd8 {[%emt 0:00:04]} 61. Nb4 {[%emt 0:00:04]} 1-0

[Event "FIDE World Cup O12-A 2024"]
[Site "Batumi"]
[Date "2024.06.27"]
[Round "5.12"]
[White "Li, Yiheng"]
[Black "Tavberidze, Alexandre"]
[Result "1-0"]
[ECO "B12"]
[WhiteElo "1886"]
[BlackElo "1529"]
[Annotator "NA RC"]
[PlyCount "63"]
[EventDate "2024.06.23"]
[EventType "swiss"]
[EventCountry "GEO"]
[SourceTitle "playchess.com"]
[Source "ChessBase"]
[SourceQuality "1"]
[TimeControl "5400+30"]

1. e4 {[%emt 0:00:03]} c6 {[%emt 0:00:06]} 2. d4 {[%emt 0:00:03]} d5 {[%emt 0:00:03]} 3. e5 {[%emt 0:00:05]} Bf5 {[%emt 0:00:04]} 4. Nf3 {[%emt 0:00:07]} e6 {[%emt 0:00:34]} 5. Be2 {[%emt 0:00:04]} a6 {[%emt 0:00:18]} 6. O-O {[%emt 0:00:31] B12: Caro-Kann: Advance Variation.} c5 {[%emt 0:01:34] 6...h6 deserves study.} 7. Be3 {[%emt 0:00:17]} cxd4 {[%emt 0:01:20]} 8. Nxd4 {[%emt 0:00:06]} Bg6 {[%emt 0:01:13]} 9. f4 {[%emt 0:00:38]} Ne7 {[%emt 0:00:30]} 10. g4 {[%emt 0:00:46]} Be4 {[%emt 0:04:38]} 11. Nd2 {[%emt 0:01:22]} Nbc6 {[%emt 0:01:17]} 12. Nxe4 {[%emt 0:01:11]} dxe4 {[%emt 0:00:09]} 13. Nxc6 {[%emt 0:01:38]} Nxc6 {[%emt 0:00:07]} 14. Qxd8+ $146 {[%emt 0:05:39]} ({Predecessor:} 14. c3 Qxd1 15. Bxd1 g5 16. Bc2 gxf4 17. Rxf4 Bh6 18. Rxe4 Bxe3+ 19. Rxe3 Rg8 20. Bxh7 Rxg4+ {½-½ Atlas,D (2323)-Kessler,L (2206) AUT-chT2W 1112 2011 (3.3)}) 14... Rxd8 {[%emt 0:00:06]} 15. c3 {[%emt 0:02:23]} Be7 {[%emt 0:00:53]} 16. Rfd1 {[%emt 0:06:57]} O-O {[%emt 0:02:41]} (16... g5 $14 {is more appropriate.}) 17. Bf1 {[%emt 0:03:28]} f5 {[%emt 0:03:18]} (17... g5 $16 {is a better defense.}) 18. Bc4 {[%emt 0:06:58]} fxg4 {[%emt 0:04:08]} 19. Bxe6+ {[%emt 0:00:09]} Kh8 {[%emt 0:00:04]} 20. Bxg4 {[%emt 0:00:11]} Rxd1+ {[%emt 0:09:14]} 21. Rxd1 {[%emt 0:00:19]} Rd8 {[%emt 0:00:10]} 22. Rxd8+ {[%emt 0:00:08]} Nxd8 {[%emt 0:00:32]} 23. Bf5 {[%emt 0:00:13]} g6 {[%emt 0:03:19]} 24. Bxe4 {[%emt 0:00:07]} Kg7 {[%emt 0:00:42]} 25. Kf2 {[%emt 0:00:19]} b5 {[%emt 0:01:40]} 26. Bd5 {[%emt 0:00:19]} Nf7 {[%emt 0:02:16]} 27. Bb6 {[%emt 0:02:05]} Bd8 {[%emt 0:03:25]} 28. Bxd8 {[%emt 0:00:05]} Nxd8 {[%emt 0:00:03]} 29. Ke3 {[%emt 0:00:41]} Kf8 {[%emt 0:03:06]} 30. Kd4 {[%emt 0:00:07]} Ke7 {[%emt 0:02:51]} 31. Kc5 {[%emt 0:00:11]} Kd7 $18 {[%emt 0:02:12]} 32. Kb6 {[%emt 0:00:13]} 1-0